bitfinex-derivatives/quotes_BTCF0:USTF0_20250728
["timestamp","ask_amount","ask_price","bid_price","bid_amount"]
[1753679560758,1.43312768,119340.0,119330.0,0.10631402]
[1753679561660,1.43312768,119340.0,119330.0,0.04979402]
[1753679563558,1.0159913,119340.0,119330.0,0.04979402]
[1753679563756,1.43312768,119340.0,119330.0,0.04979402]
[1753679564466,1.0159913,119340.0,119330.0,0.04979402]
[1753679564766,1.43312768,119340.0,119330.0,0.02769402]
[1753679565167,1.0159913,119340.0,119330.0,0.02769402]
[1753679565569,1.43312768,119340.0,119330.0,0.02769402]
[1753679566870,1.0159913,119340.0,119330.0,0.02769402]
[1753679567067,1.43312768,119340.0,119330.0,0.02769402]
[1753679567268,1.0159913,119340.0,119330.0,0.02769402]
[1753679567579,1.43312768,119340.0,119330.0,0.02769402]
[1753679567871,1.0159913,119340.0,119330.0,0.02769402]
[1753679568072,1.43312768,119340.0,119330.0,0.02769402]
[1753679568270,1.0159913,119340.0,119330.0,0.02769402]
[1753679568674,1.43312768,119340.0,119330.0,0.06089402]
[1753679568972,1.0159913,119340.0,119330.0,0.06089402]
[1753679569173,1.43312768,119340.0,119330.0,0.31488221]
[1753679569473,1.43312768,119340.0,119330.0,0.13228402]
[1753679569972,1.43312768,119340.0,119330.0,0.34085221]
[1753679570170,1.43312768,119340.0,119330.0,0.13228402]
[1753679570677,1.43312768,119340.0,119330.0,0.34085221]
[1753679571272,1.0159913,119340.0,119330.0,0.34085221]
[1753679571469,1.43312768,119340.0,119330.0,0.13228402]
[1753679571873,1.43312768,119340.0,119330.0,0.34085221]
[1753679572474,1.0406713,119340.0,119330.0,0.34085221]
[1753679572668,1.45780768,119340.0,119330.0,0.34085221]
[1753679572869,1.0406713,119340.0,119330.0,0.34085221]
[1753679573070,1.45780768,119340.0,119330.0,0.34085221]
[1753679573568,1.45780768,119340.0,119330.0,0.35629221]
[1753679573873,0.75832768,119340.0,119330.0,0.14772402]
[1753679574075,0.75832768,119340.0,119330.0,0.35629221]
[1753679574275,1.45728768,119340.0,119330.0,0.35629221]
[1753679574974,1.45728768,119340.0,119330.0,0.14772402]
[1753679575175,1.0401513,119340.0,119330.0,0.43152534]
[1753679575377,1.45728768,119340.0,119330.0,0.43152534]
[1753679576472,1.45728768,119340.0,119330.0,0.22295715]
[1753679576777,1.45660768,119340.0,119330.0,0.40482534]
[1753679577071,1.0394713,119340.0,119330.0,0.40482534]
[1753679577375,1.45660768,119340.0,119330.0,0.19625715]
[1753679577676,1.0394713,119340.0,119330.0,0.40482534]
[1753679577976,1.45660768,119340.0,119330.0,0.40482534]
[1753679578273,1.45660768,119340.0,119330.0,0.41505534]
[1753679578674,0.75832768,119340.0,119330.0,0.41505534]
[1753679578864,1.45640768,119340.0,119330.0,0.41505534]
[1753679579472,1.45608768,119340.0,119330.0,0.20648715]
[1753679579975,1.45608768,119340.0,119330.0,0.41505534]
[1753679580177,0.75832768,119340.0,119330.0,0.20648715]
[1753679580372,1.45584768,119340.0,119330.0,0.20648715]
[1753679580578,1.45584768,119340.0,119330.0,0.41505534]
[1753679580879,1.45584768,119340.0,119330.0,0.20648715]
[1753679581279,1.45584768,119340.0,119330.0,0.41505534]
[1753679581780,0.75832768,119340.0,119330.0,0.41505534]
[1753679581976,1.45564768,119340.0,119330.0,0.41505534]
[1753679582676,1.45564768,119340.0,119330.0,0.22091715]
[1753679582974,1.45564768,119340.0,119330.0,0.42948534]
[1753679583280,1.45564768,119340.0,119330.0,0.22091715]
[1753679583473,1.45564768,119340.0,119330.0,0.42948534]
[1753679583979,0.75832768,119340.0,119330.0,0.42948534]
[1753679584177,1.45564768,119340.0,119330.0,0.42948534]
[1753679584582,0.75832768,119340.0,119330.0,0.42948534]
[1753679585082,1.45544768,119340.0,119330.0,0.42948534]
[1753679585884,1.45544768,119340.0,119330.0,0.22091715]
[1753679586781,1.45536768,119340.0,119330.0,0.22091715]
[1753679586982,1.45536768,119340.0,119330.0,0.42948534]
[1753679587183,1.45536768,119340.0,119330.0,0.41505534]
[1753679587383,1.45536768,119340.0,119330.0,0.20648715]
[1753679588280,0.75832768,119340.0,119330.0,0.20648715]
[1753679588482,1.45464768,119340.0,119330.0,0.20648715]
[1753679588784,1.45464768,119340.0,119330.0,0.17263715]
[1753679589085,1.45464768,119340.0,119330.0,0.12502715]
[1753679589279,0.3411913,119340.0,119330.0,0.12502715]
[1753679589586,1.45440768,119340.0,119330.0,0.12502715]
[1753679589887,0.75832768,119340.0,119330.0,0.12502715]
[1753679590083,1.45432768,119340.0,119330.0,0.12502715]
[1753679590288,1.45412768,119340.0,119330.0,0.12502715]
[1753679590487,1.45412768,119340.0,119330.0,0.10292715]
[1753679590879,0.75832768,119340.0,119330.0,0.10292715]
[1753679591084,1.45388768,119340.0,119330.0,0.10292715]
[1753679591691,0.2533088,119330.0,119320.0,0.10532713]
[1753679591986,0.67044518,119330.0,119320.0,0.07528144]
[1753679592592,0.2533088,119330.0,119320.0,0.07528144]
[1753679592785,0.1675728,119320.0,119310.0,0.315243]
[1753679592992,0.2533228,119320.0,119310.0,0.59483192]
[1753679593384,0.9557228,119320.0,119310.0,0.59483192]
[1753679594395,0.9562028,119320.0,119310.0,0.59483192]
[1753679594785,0.9562028,119320.0,119310.0,0.51955048]
[1753679594986,0.9562028,119320.0,119310.0,0.59477871]
[1753679595384,0.9562028,119320.0,119310.0,0.51955048]
[1753679595892,0.9562028,119320.0,119310.0,1.01955048]
[1753679596493,0.8703728,119320.0,119310.0,0.81098229]
[1753679596693,0.1675728,119320.0,119310.0,1.31193042]
[1753679597185,0.1675728,119320.0,119310.0,1.41725755]
[1753679597688,0.1675728,119320.0,119310.0,1.41825755]
[1753679597888,0.1675728,119320.0,119310.0,1.00212117]
[1753679598089,0.1675728,119320.0,119310.0,1.21068936]
[1753679598390,0.1675728,119320.0,119310.0,1.00212117]
[1753679598594,0.2077328,119320.0,119310.0,1.21068936]
[1753679598790,0.2405228,119320.0,119310.0,1.21068936]
[1753679599294,0.2405228,119320.0,119310.0,1.00212117]
[1753679599787,0.2405228,119320.0,119310.0,1.21068936]
[1753679600498,0.2405228,119320.0,119310.0,1.00212117]
[1753679600796,0.2405228,119320.0,119310.0,1.21068936]
[1753679601594,0.2405228,119320.0,119310.0,1.00212117]
[1753679601797,0.1925928,119320.0,119310.0,1.41925755]
[1753679602695,0.1925928,119320.0,119310.0,1.49447753]
[1753679602897,0.1675728,119320.0,119310.0,1.31393042]
[1753679604200,0.1675728,119320.0,119310.0,1.38914434]
[1753679604401,0.14867355,119330.0,119320.0,0.2849328]
[1753679604697,0.14867355,119330.0,119320.0,0.70206918]
[1753679605092,0.14867355,119330.0,119320.0,0.78588093]
[1753679605501,0.14867355,119330.0,119320.0,1.28588093]
[1753679605700,0.14867355,119330.0,119320.0,1.36109485]
[1753679606193,0.14867355,119330.0,119320.0,0.94395847]
[1753679606400,0.14967355,119330.0,119320.0,1.36109485]
[1753679606600,0.14967355,119330.0,119320.0,0.94395847]
[1753679606802,0.16377355,119330.0,119320.0,0.94395847]
[1753679607301,0.14967355,119330.0,119320.0,0.94395847]
[1753679607504,0.14967355,119330.0,119320.0,1.36109485]
[1753679607997,0.14967355,119330.0,119320.0,1.28588093]
[1753679608395,0.14967355,119330.0,119320.0,1.36106265]
[1753679608795,0.14967355,119330.0,119320.0,0.94392627]
[1753679609396,0.14967355,119330.0,119320.0,1.36106265]
[1753679609807,0.35824174,119330.0,119320.0,1.36106265]
[1753679610004,0.16377355,119330.0,119320.0,1.36106265]
[1753679610303,0.18926355,119330.0,119320.0,1.36106265]
[1753679611003,0.18926355,119330.0,119320.0,0.94392627]
[1753679611399,0.18926355,119330.0,119320.0,1.36106265]
[1753679612305,0.18926355,119330.0,119320.0,0.94392627]
[1753679612505,0.18926355,119330.0,119320.0,1.36106265]
[1753679612696,0.18926355,119330.0,119320.0,0.94392627]
[1753679613093,0.18926355,119330.0,119320.0,1.36106265]
[1753679613506,0.14967355,119330.0,119320.0,0.94392627]
[1753679613701,0.14967355,119330.0,119320.0,1.36106265]
[1753679613901,0.14967355,119330.0,119320.0,0.94392627]
[1753679614206,0.14967355,119330.0,119320.0,1.36106265]
[1753679615307,0.39783174,119330.0,119320.0,1.15249446]
[1753679615508,0.41818174,119330.0,119320.0,1.15249446]
[1753679616105,0.20961355,119330.0,119320.0,1.15249446]
[1753679616604,0.39783174,119330.0,119320.0,0.94392627]
[1753679616807,0.18926355,119330.0,119320.0,0.86874455]
[1753679617104,0.18926355,119330.0,119320.0,1.14691732]
[1753679618505,0.20961355,119330.0,119320.0,0.92024412]
[1753679618702,0.20961355,119330.0,119320.0,0.84507161]
[1753679619407,0.20961355,119330.0,119320.0,0.67749891]
[1753679619601,0.48778632,119330.0,119320.0,0.67749891]
[1753679619907,0.48778632,119330.0,119320.0,0.84507171]
[1753679620095,0.20961355,119330.0,119320.0,0.67749891]
[1753679620294,0.48778632,119330.0,119320.0,0.67749891]
[1753679620496,1.23012541,119330.0,119320.0,0.53945]
[1753679620702,1.23012541,119330.0,119320.0,0.59879251]
[1753679621097,1.23012541,119330.0,119320.0,0.02362]
[1753679621299,0.95195264,119330.0,119320.0,0.08378554]
[1753679621510,1.23012541,119330.0,119320.0,0.17919554]
[1753679622194,1.23012541,119330.0,119320.0,0.16442554]
[1753679622398,1.23012541,119330.0,119320.0,0.06016554]
[1753679623103,0.95195264,119330.0,119320.0,0.06016554]
[1753679623304,1.23012541,119330.0,119320.0,0.06016554]
[1753679625606,0.95195264,119330.0,119320.0,0.06016554]
[1753679625802,1.23012541,119330.0,119320.0,0.08365554]
[1753679626702,0.95195264,119330.0,119320.0,0.08365554]
[1753679627203,1.23012541,119330.0,119320.0,0.08365554]
[1753679631504,1.23012541,119330.0,119320.0,0.02349]
[1753679632507,0.95195264,119330.0,119320.0,0.02349]
[1753679632708,1.23012541,119330.0,119320.0,0.02349]
[1753679637310,0.1675727,119320.0,119310.0,0.05652073]
[1753679637610,0.50580547,119320.0,119310.0,0.17383627]
[1753679638217,0.50580547,119320.0,119310.0,0.18778627]
[1753679638416,0.50580547,119320.0,119310.0,0.18878627]
[1753679638819,0.64499986,119320.0,119310.0,0.18878627]
[1753679639010,0.64499986,119320.0,119310.0,0.39746985]
[1753679639517,0.64499986,119320.0,119310.0,0.18878627]
[1753679639817,0.64499986,119320.0,119310.0,0.39746985]
[1753679640311,0.61434986,119320.0,119310.0,0.39746985]
[1753679640518,0.40566628,119320.0,119310.0,0.39746985]
[1753679640706,0.41596628,119320.0,119310.0,0.56505665]
[1753679640910,0.2072827,119320.0,119310.0,0.35637307]
[1753679641215,0.2072827,119320.0,119310.0,0.35737307]
[1753679641417,0.2072827,119320.0,119310.0,0.18978627]
[1753679642912,0.50585238,119320.0,119310.0,0.18978627]
[1753679643211,0.50585238,119320.0,119310.0,0.12962073]
[1753679643817,0.50585238,119320.0,119310.0,0.20479324]
[1753679644314,0.50585238,119320.0,119310.0,0.12962073]
[1753679645716,0.2276327,119320.0,119310.0,0.12962073]
[1753679645914,0.50585238,119320.0,119310.0,0.12962073]
[1753679646514,0.50585238,119320.0,119310.0,0.18973053]
[1753679649019,0.2276327,119320.0,119310.0,0.18973053]
[1753679649219,0.50585238,119320.0,119310.0,0.18973053]
[1753679649422,0.50585238,119320.0,119310.0,0.20479324]
[1753679650611,0.2276327,119320.0,119310.0,0.15818324]
[1753679650816,0.50585238,119320.0,119310.0,0.15818324]
[1753679651120,0.50585238,119320.0,119310.0,0.19075324]
[1753679651322,0.50585238,119320.0,119310.0,0.20470324]
[1753679651914,0.2276327,119320.0,119310.0,0.20470324]
[1753679652617,0.50585238,119320.0,119310.0,0.20470324]
[1753679656224,0.50585238,119320.0,119310.0,0.12953073]
[1753679656425,0.50585238,119320.0,119310.0,0.20482705]
[1753679656724,0.2276327,119320.0,119310.0,0.12953073]
[1753679656922,0.50585238,119320.0,119310.0,0.12953073]
[1753679657424,0.9250027,119320.0,119310.0,0.63557337]
[1753679659630,0.9250027,119320.0,119310.0,0.18976639]
[1753679659821,0.9250027,119320.0,119310.0,0.46798607]
[1753679660022,0.9250027,119320.0,119310.0,0.18976639]
[1753679660424,0.9250027,119320.0,119310.0,0.46798607]
[1753679660719,0.9235827,119320.0,119310.0,0.71938512]
[1753679661337,0.9235827,119320.0,119310.0,0.44116544]
[1753679661525,0.9235827,119320.0,119310.0,0.71938512]
[1753679662933,0.9102427,119320.0,119310.0,0.71938512]
[1753679663125,0.8840927,119320.0,119310.0,0.73444404]
[1753679664231,0.8840927,119320.0,119310.0,0.65914946]
[1753679664934,0.8840927,119320.0,119310.0,1.15914946]
[1753679666438,0.8840927,119320.0,119310.0,0.88092978]
[1753679666629,0.8840927,119320.0,119310.0,1.15914946]
[1753679667431,0.8840927,119320.0,119310.0,1.17224661]
[1753679667634,0.8840927,119320.0,119310.0,1.24749427]
[1753679667835,0.8840927,119320.0,119310.0,1.17224661]
[1753679668331,0.8840927,119320.0,119310.0,1.24749427]
[1753679668733,0.8850927,119320.0,119310.0,1.24949427]
[1753679668934,0.8850927,119320.0,119310.0,1.08190697]
[1753679669133,0.8850927,119320.0,119310.0,1.08290697]
[1753679669638,0.8850927,119320.0,119310.0,0.80468729]
[1753679669837,0.9081227,119320.0,119310.0,1.08290697]
[1753679670029,0.9238727,119320.0,119310.0,1.08290697]
[1753679670232,0.9238727,119320.0,119310.0,0.72943963]
[1753679670430,0.9238727,119320.0,119310.0,0.8046384]
[1753679670634,0.2073527,119320.0,119310.0,1.08285808]
[1753679671034,0.2073527,119320.0,119310.0,0.72943963]
[1753679671241,0.2073527,119320.0,119310.0,1.00765931]
[1753679673341,0.2073527,119320.0,119310.0,0.72943963]
[1753679673549,0.2073527,119320.0,119310.0,1.00765931]
[1753679673747,0.2073527,119320.0,119310.0,0.72943963]
[1753679674248,0.2073527,119320.0,119310.0,1.00765931]
[1753679676140,0.2277027,119320.0,119310.0,0.72943963]
[1753679677259,0.50592238,119320.0,119310.0,0.62656359]
[1753679677459,0.50592238,119320.0,119310.0,0.56818622]
[1753679677659,0.50592238,119320.0,119310.0,0.59999622]
[1753679677857,0.2277027,119320.0,119310.0,0.59999622]
[1753679678063,0.50592238,119320.0,119310.0,0.62143622]
[1753679678254,0.50592238,119320.0,119310.0,0.69662193]
[1753679678453,0.2277027,119320.0,119310.0,0.69662193]
[1753679678652,0.50592238,119320.0,119310.0,0.73549193]
[1753679678952,0.78414206,119320.0,119310.0,0.41651489]
[1753679679152,0.78414206,119320.0,119310.0,0.37026716]
[1753679679358,0.50592238,119320.0,119310.0,0.04241043]
[1753679680368,0.50492238,119320.0,119310.0,0.04241043]
[1753679680662,0.50492238,119320.0,119310.0,0.04341043]
[1753679681055,0.2267027,119320.0,119310.0,0.04341043]
[1753679681251,0.50492238,119320.0,119310.0,0.04341043]
[1753679681862,0.50492238,119320.0,119310.0,0.05235305]
[1753679682966,0.50492238,119320.0,119310.0,0.00994262]
[1753679684753,0.2267027,119320.0,119310.0,0.09448262]
[1753679684954,0.9365027,119320.0,119310.0,0.12597262]
[1753679685258,1.21472238,119320.0,119310.0,0.12597262]
[1753679685765,0.9365027,119320.0,119310.0,0.12597262]
[1753679685963,1.21472238,119320.0,119310.0,0.12597262]
[1753679688666,1.21472238,119320.0,119310.0,0.00994262]
[1753679691870,0.9365027,119320.0,119310.0,0.00994262]
[1753679692070,1.21472238,119320.0,119310.0,0.00994262]
[1753679692772,0.9365027,119320.0,119310.0,0.00994262]
[1753679693070,1.21472238,119320.0,119310.0,0.00994262]
[1753679694772,1.21472238,119320.0,119310.0,0.07007744]
[1753679694972,1.21472238,119320.0,119310.0,0.10351744]
[1753679695766,0.9365027,119320.0,119310.0,0.10351744]
[1753679695965,1.21472238,119320.0,119310.0,0.10351744]
[1753679697876,1.21472238,119320.0,119310.0,0.04338262]
[1753679698081,0.9365027,119320.0,119310.0,0.04338262]
[1753679698274,1.21472238,119320.0,119310.0,0.12955262]
[1753679699975,0.50492238,119320.0,119310.0,0.12955262]
[1753679700281,0.9305427,119320.0,119310.0,0.5753594]
[1753679700472,0.2267027,119320.0,119310.0,0.5753594]
[1753679700673,0.9303827,119320.0,119310.0,0.29713972]
[1753679700873,0.9303827,119320.0,119310.0,0.5753594]
[1753679701381,0.9302227,119320.0,119310.0,0.5753594]
[1753679701876,0.9302227,119320.0,119310.0,0.65054511]
[1753679702380,0.9302227,119320.0,119310.0,0.6503063]
[1753679702969,0.9302227,119320.0,119310.0,0.29690091]
[1753679706975,0.9302227,119320.0,119310.0,0.37208662]
[1753679709881,0.9302227,119320.0,119310.0,0.6503063]
[1753679710080,0.1675727,119320.0,119310.0,0.73411805]
[1753679710680,0.1936727,119320.0,119310.0,0.73411805]
[1753679710875,0.2319127,119320.0,119310.0,0.44081632]
[1753679711182,0.2319127,119320.0,119310.0,0.94081632]
[1753679711575,0.2319127,119320.0,119310.0,1.219036]
[1753679712174,0.2319127,119320.0,119310.0,1.15893234]
[1753679712386,0.2319127,119320.0,119310.0,0.95589837]
[1753679712584,0.2319127,119320.0,119310.0,1.23411805]
[1753679714384,0.2319127,119320.0,119310.0,0.95589837]
[1753679714588,0.2319127,119320.0,119310.0,1.23411805]
[1753679716885,0.2319127,119320.0,119310.0,0.95589837]
[1753679717083,0.2319127,119320.0,119310.0,1.23411805]
[1753679718690,0.1828627,119320.0,119310.0,1.26425947]
[1753679719085,0.1828627,119320.0,119310.0,0.98603979]
[1753679719588,0.1828627,119320.0,119310.0,1.26425947]
[1753679720292,0.2057227,119320.0,119310.0,1.26425947]
[1753679720486,0.2315327,119320.0,119310.0,1.15893234]
[1753679721493,0.52857604,119320.0,119310.0,0.88071266]
[1753679721692,0.25035636,119320.0,119310.0,0.88071266]
[1753679722290,0.2315327,119320.0,119310.0,1.15893234]
[1753679722798,0.2315327,119320.0,119310.0,1.2340467]
[1753679724198,0.2315327,119320.0,119310.0,0.95582702]
[1753679724499,0.2315327,119320.0,119310.0,0.94081398]
[1753679724793,0.2315327,119320.0,119310.0,1.21903366]
[1753679725309,0.2315327,119320.0,119310.0,1.15893234]
[1753679727606,0.2315327,119320.0,119310.0,0.88071266]
[1753679727810,0.2315327,119320.0,119310.0,1.15893234]
[1753679728407,0.2315327,119320.0,119310.0,0.88071266]
[1753679728607,0.2315327,119320.0,119310.0,1.15893234]
[1753679729506,0.2315327,119320.0,119310.0,0.88071266]
[1753679729706,0.2315327,119320.0,119310.0,1.15893234]
[1753679730798,0.2315327,119320.0,119310.0,1.26425947]
[1753679734207,0.2165327,119320.0,119310.0,1.26425947]
[1753679734806,0.1828627,119320.0,119310.0,1.26425947]
[1753679735002,0.1828627,119320.0,119310.0,0.98603979]
[1753679735306,0.1828627,119320.0,119310.0,1.26425947]
[1753679736207,0.01529,119320.0,119310.0,1.26425947]
[1753679736413,1.0690671,119330.0,119320.0,0.2867233]
[1753679736613,1.0690671,119330.0,119320.0,0.65736226]
[1753679736912,1.0690671,119330.0,119320.0,0.58213483]
[1753679737210,1.0690671,119330.0,119320.0,0.68746196]
[1753679737413,1.0690671,119330.0,119320.0,0.40924228]
[1753679737612,1.0700671,119330.0,119320.0,0.68746196]
[1753679738311,1.0720671,119330.0,119320.0,0.68846196]
[1753679738510,1.0615571,119330.0,119320.0,0.68846196]
[1753679738706,1.0615571,119330.0,119320.0,0.48546777]
[1753679738906,1.0615571,119330.0,119320.0,0.65836032]
[1753679739412,1.0615571,119330.0,119320.0,1.15836032]
[1753679740013,1.0615571,119330.0,119320.0,0.88014064]
[1753679740312,1.0196643,119330.0,119320.0,1.15836032]
[1753679740916,1.0196643,119330.0,119320.0,0.88014064]
[1753679741229,1.0196643,119330.0,119320.0,1.15836032]
[1753679742006,0.2780417,119330.0,119320.0,1.15836032]
[1753679742211,0.8828498,119330.0,119320.0,1.24216505]
[1753679743016,0.9482398,119330.0,119320.0,0.96394537]
[1753679743213,0.9482398,119330.0,119320.0,1.24216505]
[1753679743718,0.9482398,119330.0,119320.0,0.96394537]
[1753679745113,0.9482398,119330.0,119320.0,1.24216505]
[1753679745419,0.9482398,119330.0,119320.0,0.88871988]
[1753679745720,0.9475198,119330.0,119320.0,0.99404701]
[1753679746318,0.9471998,119330.0,119320.0,0.99404701]
[1753679746719,0.9471998,119330.0,119320.0,1.27226669]
[1753679747621,0.9471998,119330.0,119320.0,1.16693956]
[1753679747818,0.9471998,119330.0,119320.0,0.88871988]
[1753679748015,0.9471998,119330.0,119320.0,1.16693956]
[1753679748322,0.8986798,119330.0,119320.0,1.16693956]
[1753679748915,0.8820898,119330.0,119320.0,1.27226669]
[1753679749222,0.8820898,119330.0,119320.0,1.16693956]
[1753679750319,0.8820898,119330.0,119320.0,0.88871988]
[1753679750518,0.8986798,119330.0,119320.0,1.16693956]
[1753679752524,0.8798098,119330.0,119320.0,1.24208986]
[1753679753016,0.8798098,119330.0,119320.0,0.96387018]
[1753679753218,0.8798098,119330.0,119320.0,1.16693956]
[1753679753522,0.1705698,119330.0,119320.0,1.67299018]
[1753679753917,0.1705698,119330.0,119320.0,1.95120986]
[1753679754722,0.1705698,119330.0,119320.0,1.67299018]
[1753679754922,0.1705698,119330.0,119320.0,1.95120986]
[1753679755423,0.1705698,119330.0,119320.0,1.67299018]
[1753679755629,0.2102498,119330.0,119320.0,1.95120986]
[1753679755920,0.2245098,119330.0,119320.0,1.95120986]
[1753679756324,0.2245098,119330.0,119320.0,1.67299018]
[1753679756625,0.2245098,119330.0,119320.0,1.95120986]
[1753679757626,0.2245098,119330.0,119320.0,1.59783988]
[1753679757921,0.2245098,119330.0,119320.0,1.87605956]
[1753679758918,0.2245098,119330.0,119320.0,1.98138669]
[1753679759525,0.2245098,119330.0,119320.0,1.70316701]
[1753679759727,0.2245098,119330.0,119320.0,1.98138669]
[1753679759922,0.2102498,119330.0,119320.0,1.70316701]
[1753679760137,0.1871598,119330.0,119320.0,1.98138669]
[1753679760426,0.1871598,119330.0,119320.0,1.87605956]
[1753679760627,0.1705698,119330.0,119320.0,1.87605956]
[1753679760824,0.1705725,119330.0,119320.0,2.15427924]
[1753679761023,0.1705725,119330.0,119320.0,1.87605956]
[1753679762725,0.1705725,119330.0,119320.0,2.15427924]
[1753679763123,0.1705725,119330.0,119320.0,2.25947216]
[1753679763632,0.1705591,119330.0,119320.0,2.25947216]
[1753679763824,0.003,119330.0,119320.0,2.25947216]
[1753679765931,0.2094251,119350.0,119340.0,0.2840151]
[1753679766230,0.2094251,119350.0,119340.0,0.57895935]
[1753679766626,0.2094251,119350.0,119340.0,0.49521898]
[1753679766819,0.2246451,119350.0,119340.0,0.49521898]
[1753679767332,0.2699951,119350.0,119340.0,0.49621898]
[1753679767527,0.2799351,119350.0,119340.0,0.99621898]
[1753679767929,0.2819351,119350.0,119340.0,0.99621898]
[1753679768230,0.2867351,119350.0,119340.0,0.99621898]
[1753679768831,0.2867351,119350.0,119340.0,1.16376398]
[1753679769231,0.2867351,119350.0,119340.0,1.23887939]
[1753679769630,0.2819351,119350.0,119340.0,1.23887939]
[1753679769833,0.2547351,119350.0,119340.0,1.23887939]
[1753679770036,0.2164251,119350.0,119340.0,1.23887939]
[1753679770730,0.2547351,119350.0,119340.0,1.23887939]
[1753679771034,0.2316451,119350.0,119340.0,1.94611939]
[1753679771227,0.2316451,119350.0,119340.0,1.87100398]
[1753679771427,0.2316451,119350.0,119340.0,1.9761969]
[1753679771726,0.2819351,119350.0,119340.0,1.9761969]
[1753679772631,0.2819351,119350.0,119340.0,1.87100398]
[1753679772840,0.2316451,119350.0,119340.0,1.66783495]
[1753679773135,0.2316451,119350.0,119340.0,1.94605463]
[1753679773329,0.2577351,119350.0,119340.0,1.94605463]
[1753679774838,0.2577351,119350.0,119340.0,1.66783495]
[1753679775035,0.2577351,119350.0,119340.0,1.94605463]
[1753679775236,0.2577351,119350.0,119340.0,0.96059495]
[1753679775530,0.2577351,119350.0,119340.0,1.23881463]
[1753679775933,0.2577351,119350.0,119340.0,0.96059495]
[1753679776135,0.2577351,119350.0,119340.0,1.23881463]
[1753679776335,0.2577351,119350.0,119340.0,0.96059495]
[1753679776534,0.2577351,119350.0,119340.0,1.23881463]
[1753679776940,0.2577351,119350.0,119340.0,1.16376398]
[1753679777136,0.2577351,119350.0,119340.0,0.8855443]
[1753679777335,0.2577351,119350.0,119340.0,1.16376398]
[1753679777535,0.2346451,119350.0,119340.0,1.16376398]
[1753679778140,0.2194251,119350.0,119340.0,1.16376398]
[1753679779439,0.2931722,119360.0,119350.0,0.2840009]
[1753679779637,0.2931722,119360.0,119350.0,1.27886058]
[1753679779937,0.2512895,119360.0,119350.0,1.27886058]
[1753679780135,0.2512895,119360.0,119350.0,1.36265127]
[1753679780738,0.2592895,119360.0,119350.0,1.4386755]
[1753679781545,0.2592895,119360.0,119350.0,1.9386755]
[1753679781737,0.2592895,119360.0,119350.0,1.86365127]
[1753679782243,0.2592895,119360.0,119350.0,1.96884419]
[1753679782637,0.2592895,119360.0,119350.0,1.69062451]
[1753679782931,0.2592895,119360.0,119350.0,1.96884419]
[1753679783437,0.2592895,119360.0,119350.0,1.69062451]
[1753679783643,0.2592895,119360.0,119350.0,1.96884419]
[1753679784444,0.2174068,119360.0,119350.0,1.96884419]
[1753679784635,0.008,119360.0,119350.0,2.24706387]
[1753679784835,0.008,119360.0,119350.0,1.96884419]
[1753679785039,0.008,119360.0,119350.0,1.86365127]
[1753679785243,0.1755169,119360.0,119350.0,1.86365127]
[1753679785443,0.1755169,119360.0,119350.0,1.96884419]
[1753679785933,0.1755169,119360.0,119350.0,1.86365127]
[1753679786745,0.008,119360.0,119350.0,1.86365127]
[1753679787145,0.1755169,119360.0,119350.0,1.86365127]
[1753679787340,0.1755169,119360.0,119350.0,1.96884419]
[1753679787540,0.1755169,119360.0,119350.0,1.69062451]
[1753679787733,0.1755169,119360.0,119350.0,1.96884419]
[1753679788646,0.1755169,119360.0,119350.0,1.86769127]
[1753679788834,0.008,119360.0,119350.0,1.97266213]
[1753679789236,0.008,119360.0,119350.0,1.69444245]
[1753679789440,0.07654,119360.0,119350.0,1.25198213]
[1753679789639,0.07654,119360.0,119350.0,1.97322213]
[1753679789851,0.07654,119360.0,119350.0,1.69500245]
[1753679790242,0.03499,119360.0,119350.0,1.97322213]
[1753679790543,0.02439,119360.0,119350.0,1.97322213]
[1753679791348,0.01939,119360.0,119350.0,1.97222213]
[1753679791546,0.02039,119360.0,119350.0,1.97222213]
[1753679791947,0.004,119360.0,119350.0,1.97222213]
[1753679792151,0.001,119360.0,119350.0,1.97222213]
[1753679792352,0.003,119360.0,119350.0,1.86725127]
[1753679793144,0.04592,119360.0,119350.0,1.86725127]
[1753679793747,0.01939,119360.0,119350.0,1.86725127]
[1753679794052,0.01939,119360.0,119350.0,1.14601127]
[1753679794248,0.1838799,119380.0,119360.0,0.07219]
[1753679794553,0.17965989,119380.0,119370.0,0.56561108]
[1753679795045,0.20318989,119380.0,119370.0,0.56561108]
[1753679795242,0.20918989,119380.0,119370.0,0.56561108]
[1753679795446,0.01639,119390.0,119380.0,0.1314509]
[1753679795646,0.183865,119390.0,119380.0,0.66627825]
[1753679796052,0.207395,119390.0,119380.0,1.25004788]
[1753679796356,0.228415,119390.0,119380.0,1.26641864]
[1753679796555,0.239015,119390.0,119380.0,1.26641864]
[1753679796752,0.239015,119390.0,119380.0,1.33447784]
[1753679797459,0.239015,119390.0,119380.0,1.29260664]
[1753679797658,0.242015,119390.0,119380.0,1.29260664]
[1753679798051,0.242015,119390.0,119380.0,1.01438696]
[1753679798251,0.242015,119390.0,119380.0,1.29260664]
[1753679798451,0.244015,119390.0,119380.0,1.29260664]
[1753679799361,0.244015,119390.0,119380.0,1.01438696]
[1753679799563,0.244015,119390.0,119380.0,1.29260664]
[1753679799960,0.188865,119390.0,119380.0,1.29260664]
[1753679800262,0.172475,119390.0,119380.0,1.36761153]
[1753679801253,0.172475,119390.0,119380.0,1.08939185]
[1753679801454,0.172475,119390.0,119380.0,1.36761153]
[1753679803870,0.170475,119390.0,119380.0,1.36761153]
[1753679804367,0.168475,119390.0,119380.0,1.36761153]
[1753679804563,0.169475,119390.0,119380.0,1.36761153]
[1753679805967,0.169475,119390.0,119380.0,1.08939185]
[1753679806268,0.169475,119390.0,119380.0,1.36761153]
[1753679806563,0.002,119390.0,119380.0,1.36761153]
[1753679806768,0.002,119390.0,119380.0,1.35250802]
[1753679807067,0.169475,119390.0,119380.0,1.29260664]
[1753679807264,0.002,119390.0,119380.0,1.29260664]
[1753679807469,0.002,119390.0,119380.0,1.01438696]
[1753679807668,0.002,119390.0,119380.0,1.29260664]
[1753679809165,0.209321,119410.0,119400.0,0.2873611]
[1753679809370,0.207321,119410.0,119400.0,1.63672375]
[1753679809667,0.207321,119410.0,119400.0,1.44226668]
[1753679810265,0.0837211,119420.0,119410.0,0.182757]
[1753679810565,0.2511653,119420.0,119410.0,0.62545343]
[1753679810761,0.2511653,119420.0,119410.0,0.34723375]
[1753679810967,0.2675553,119420.0,119410.0,0.709195]
[1753679811165,0.3121053,119420.0,119410.0,0.709195]
[1753679812170,0.3131053,119420.0,119410.0,0.709195]
[1753679812368,0.3267053,119420.0,119410.0,0.709195]
[1753679813368,0.3267053,119420.0,119410.0,1.209195]
[1753679813772,0.3237053,119420.0,119410.0,1.209195]
[1753679814267,0.3247053,119420.0,119410.0,1.14930825]
[1753679814673,0.3247053,119420.0,119410.0,0.87108857]
[1753679814973,0.3247053,119420.0,119410.0,1.14930825]
[1753679815377,0.3247053,119420.0,119410.0,1.20912573]
[1753679817471,0.3247053,119420.0,119410.0,1.30590424]
[1753679817472,0.2531653,119420.0,119410.0,1.30590424]